bitfinex/quotes_SOLUSD_20251006
["timestamp","ask_amount","ask_price","bid_price","bid_amount"]
[1759716197034,18.00326175,231.16,231.15,1e-08]
[1759716197239,48.74326175,231.16,231.15,1e-08]
[1759716198047,31.67647521,231.12,231.11,1e-08]
[1759716198221,64.5172538,231.12,231.11,1e-08]
[1759716198420,65.2272538,231.12,231.11,1e-08]
[1759716198850,34.4872538,231.12,231.11,1e-08]
[1759716199027,65.2272538,231.12,231.11,1e-08]
[1759716199420,69.55401046,231.12,231.11,1e-08]
[1759716199818,69.53401046,231.12,231.11,1e-08]
[1759716201367,71.28730046,231.12,231.11,1e-08]
[1759716203041,82.10419211,231.12,231.08,1e-08]
[1759716203242,12.9972538,231.09,231.08,1e-08]
[1759716203436,20.8,231.06,231.0,0.2]
[1759716203642,6.44959552,231.01,231.0,0.2]
[1759716203846,37.16959552,231.01,231.0,0.2]
[1759716204762,37.85959552,231.01,231.0,0.2]
[1759716204946,48.73607073,231.01,231.0,0.2]
[1759716205345,48.04607073,231.01,231.0,0.2]
[1759716206282,48.73607073,231.01,231.0,0.2]
[1759716206445,48.04607073,231.01,231.0,0.2]
[1759716206777,46.61529214,231.01,231.0,0.2]
[1759716207075,48.73607073,231.01,231.0,0.2]
[1759716208093,18.01607073,231.01,231.0,0.2]
[1759716208392,48.73607073,231.01,231.0,0.2]
[1759716209182,18.01607073,231.01,231.0,0.2]
[1759716209493,17.32607073,231.01,231.0,0.2]
[1759716209669,48.02607073,231.01,231.0,0.2]
[1759716210273,48.71607073,231.01,231.0,0.2]
[1759716210787,50.45003696,231.01,231.0,0.2]
[1759716210987,47.63925837,231.01,231.0,0.2]
[1759716211192,50.45003696,231.01,231.0,0.2]
[1759716211582,19.06003696,231.01,231.0,0.2]
[1759716211776,49.76003696,231.01,231.0,0.2]
[1759716212893,19.06003696,231.01,231.0,0.2]
[1759716213281,49.76003696,231.01,231.0,0.2]
[1759716213700,19.06003696,231.01,231.0,0.2]
[1759716213892,57.94959552,231.01,231.0,0.2]
[1759716215289,1.73381591,231.02,231.0,0.54]
[1759716215290,2.12077859,231.02,231.0,0.54]
[1759716215493,30.68,231.01,231.0,0.2]
[1759716216666,51.48,231.01,231.0,0.2]
[1759716217166,20.8,231.02,231.0,0.54]
[1759716217370,30.68,231.01,231.0,0.54]
[1759716221282,30.68,231.01,231.0,0.2]
[1759716221480,30.68,231.01,231.0,0.54]
[1759716222111,32.80077859,231.01,231.0,0.2]
[1759716222283,48.66607073,231.01,231.0,0.2]
[1759716225190,47.90693798,231.01,231.0,0.2]
[1759716228590,17.22693798,231.01,231.0,0.2]
[1759716228910,47.90693798,231.01,231.0,0.2]
[1759716230386,42.91812105,231.01,231.0,0.2]
[1759716230905,47.24693798,231.01,231.0,0.2]
[1759716231509,36.37046277,231.01,231.0,0.2]
[1759716233015,30.68,231.01,231.0,0.2]
[1759716233192,1.36164584,231.02,231.0,0.2]
[1759716233517,30.68,231.01,231.0,0.2]
[1759716235526,10.81895829,231.08,231.0,0.54]
[1759716235688,1.73344022,231.08,231.01,1.70164584]
[1759716235887,0.69,231.1,231.01,1.70164584]
[1759716235888,30.68,231.07,231.02,0.34]
[1759716236304,30.68,231.07,231.03,0.34]
[1759716236523,32.04164584,231.07,231.0,0.54]
[1759716236806,1.36164584,231.04,231.0,0.2]
[1759716236999,30.68,231.03,231.0,0.2]
[1759716237392,1.36164584,231.05,231.0,0.2]
[1759716237600,30.68,231.04,231.0,0.2]
[1759716237932,1.36164584,231.01,231.0,0.2]
[1759716238098,30.68,231.01,231.0,0.2]
[1759716238420,32.73164584,231.01,231.0,0.2]
[1759716240512,37.06046277,231.01,231.0,0.2]
[1759716241504,22.53381591,231.03,231.0,0.2]
[1759716241702,30.66,231.02,231.0,0.2]
[1759716242008,32.02164584,231.02,231.0,0.2]
[1759716242222,5.01881693,231.01,231.0,0.2]
[1759716242406,15.89529214,231.01,231.0,0.2]
[1759716242607,20.8,230.98,230.97,0.2]
[1759716242786,63.69812105,230.98,230.97,0.2]
[1759716243110,64.38812105,230.98,230.97,1e-08]
[1759716243310,20.8,230.95,230.94,0.2]
[1759716243489,63.69812105,230.95,230.94,0.2]
[1759716243689,64.38812105,230.95,230.94,0.2]
[1759716244316,38.05806259,230.95,230.94,0.2]
[1759716244491,68.71806259,230.95,230.94,0.2]
[1759716244693,1.36164584,230.95,230.94,0.2]
[1759716244999,51.48,230.95,230.94,0.2]
[1759716245399,52.17,230.95,230.94,0.2]
[1759716245698,51.48,230.95,230.94,0.2]
[1759716246326,30.68,230.95,230.94,0.2]
[1759716246811,31.37,230.95,230.94,0.2]
[1759716247201,42.24647521,230.95,230.94,0.2]
[1759716247925,43.60812105,230.95,230.94,0.2]
[1759716248411,47.93806259,230.95,230.94,0.2]
[1759716248925,22.16164584,230.95,230.94,0.2]
[1759716249219,52.84164584,230.95,230.94,0.2]
[1759716249613,53.53164584,230.95,230.94,0.2]
[1759716250025,52.84164584,230.95,230.94,0.2]
[1759716250410,51.48,230.95,230.94,0.2]
[1759716251003,32.06164584,230.95,230.94,0.2]
[1759716251618,12.61074215,230.98,230.94,0.2]
[1759716251816,1.36164584,231.01,230.94,0.2]
[1759716252023,4.3286042,231.03,230.95,0.34]
[1759716252024,1.73374076,231.03,230.95,0.34]
[1759716252198,0.69,231.08,230.95,0.34]
[1759716252403,30.72,231.07,231.0,1.36164584]
[1759716252609,30.72,231.07,231.01,0.34]
[1759716254029,30.72,231.07,231.01,1.70164584]
[1759716255136,33.74,231.12,231.03,1.36164584]
[1759716255137,1.36164584,231.1,231.03,1.36164584]
[1759716255449,51.5,231.09,231.05,1.36164584]
[1759716255733,30.7,231.09,231.05,1.36164584]
[1759716256113,30.7,231.09,231.05,1.70164584]
[1759716256339,30.72,231.08,231.06,1.70164584]
[1759716257034,30.72,231.08,231.06,0.34]
[1759716257338,30.72,231.08,231.06,1.70164584]
[1759716257519,30.72,231.08,231.04,1.36164584]
[1759716257718,30.72,231.08,231.02,0.34]
[1759716257719,30.7,231.07,231.02,0.34]
[1759716257928,30.7,231.07,231.03,1.36164584]
[1759716258234,30.7,231.07,230.9,21.65404297]
[1759716258235,1.36164584,231.04,230.97,1.36164584]
[1759716258435,1.36164584,231.02,230.95,1.70164584]
[1759716258652,1.36164584,231.01,230.94,1.56164584]
[1759716258824,30.72,231.0,230.95,1.36164584]
[1759716259028,30.74,231.01,230.99,1.36164584]
[1759716259227,30.74,231.01,231.0,1.36164584]
[1759716259916,30.74,231.01,231.0,0.34]
[1759716260239,30.74,231.01,231.0,1.70164584]
[1759716260425,30.74,231.01,231.0,1.36164584]
[1759716261745,30.74,231.01,230.99,1.36164584]
[1759716262836,30.72,231.01,230.99,1.36164584]
[1759716263125,30.72,231.01,231.0,1.36164584]
[1759716263744,30.72,231.01,230.99,1.36164584]
[1759716263945,0.65,231.0,230.94,4.53008046]
[1759716264127,30.72,231.01,230.94,4.53008046]
[1759716264128,31.37,231.01,230.96,1.36164584]
[1759716264553,0.65,231.0,230.95,1.36164584]
[1759716264724,0.65,230.99,230.95,1.36164584]
[1759716265047,30.72,231.01,230.96,1.36164584]
[1759716265353,0.65,231.03,230.96,1.36164584]
[1759716265523,30.72,231.02,230.97,1.36164584]
[1759716265724,0.65,231.01,230.97,1.36164584]
[1759716265924,30.7,231.0,230.97,1.36164584]
[1759716267446,30.7,231.0,230.95,4.32984596]
[1759716267648,0.65,231.08,230.99,1.36164584]
[1759716267853,0.65,231.08,231.04,1.36164584]
[1759716268027,0.65,231.07,231.04,1.36164584]
[1759716268223,30.72,231.08,231.05,1.36164584]
[1759716268450,30.72,231.08,231.07,1.36164584]
[1759716268653,0.65,231.15,231.07,1.70164584]
[1759716268860,30.72,231.14,231.11,1.36164584]
[1759716269036,0.65,231.13,231.1,1.36164584]
[1759716269350,0.65,231.13,231.09,1.36164584]
[1759716269850,20.8,231.18,231.08,4.32750349]
[1759716269851,30.72,231.12,231.11,1.36164584]
[1759716270637,30.72,231.13,231.11,1.36164584]
[1759716271464,0.65,231.12,231.09,1.36164584]
[1759716272050,2.01164584,231.11,231.04,1.36164584]
[1759716272226,0.65,231.1,231.04,1.36164584]
[1759716272428,30.7,231.09,231.07,1.36164584]
[1759716272840,21.45,231.12,231.08,1.36164584]
[1759716273153,31.37,231.11,231.05,1.36164584]
[1759716273541,0.65,231.11,231.06,1.36164584]
[1759716273858,31.42,231.1,231.06,1.36164584]
[1759716274164,0.7,231.09,231.06,1.36164584]
[1759716275256,0.7,231.09,231.05,1.36164584]
[1759716276361,30.72,231.1,231.05,1.36164584]
[1759716276566,2.06164584,231.08,231.01,1.36164584]
[1759716276770,0.7,231.07,231.01,1.36164584]
[1759716277057,0.7,231.06,231.01,1.36164584]
[1759716277258,30.7,231.05,230.96,25.12964183]
[1759716277553,30.7,231.04,231.01,1.36164584]
[1759716277756,21.69295836,231.13,231.02,1.36164584]
[1759716277757,1.36164584,231.1,231.02,1.36164584]
[1759716277955,31.4,231.09,231.05,1.36164584]
[1759716278266,0.7,231.08,231.05,1.36164584]
[1759716278451,0.7,231.08,231.04,1.36164584]
[1759716278858,0.7,231.08,231.0,0.34]
[1759716279165,0.7,231.07,231.02,1.36164584]
[1759716279350,31.42,231.06,231.01,5.69045956]
[1759716279661,31.42,231.06,231.02,1.36164584]
[1759716280164,31.42,231.06,231.03,1.36164584]
[1759716280463,0.7,231.08,231.04,1.36164584]
[1759716280644,31.4,231.07,231.04,1.36164584]
[1759716281557,31.4,231.07,231.03,1.36164584]
[1759716281763,31.4,231.07,231.02,1.36164584]
[1759716282058,0.7,231.07,231.03,1.36164584]
[1759716282255,30.7,231.06,231.04,1.36164584]
[1759716282658,0.7,231.08,231.04,1.36164584]
[1759716282958,30.68,231.08,231.06,1.36164584]
[1759716283337,30.68,231.08,231.05,1.36164584]
[1759716285161,30.68,231.08,231.05,2.1250345]
[1759716285369,20.8,231.19,231.06,2.1250345]
[1759716285565,0.7,231.12,231.07,2.1250345]
[1759716285771,31.38,231.11,231.07,2.1250345]
[1759716286073,0.7,231.1,231.06,2.1250345]
[1759716286258,0.7,231.09,231.06,2.1250345]
[1759716286570,0.7,231.09,231.07,2.1250345]
[1759716287562,30.68,231.11,231.08,2.1250345]
[1759716287742,31.36,231.11,231.08,2.1250345]
[1759716289577,31.36,231.11,231.03,10.82110548]
[1759716289578,0.68,231.1,231.06,2.1250345]
[1759716289883,30.68,231.11,231.06,2.1250345]
[1759716289884,0.68,231.09,231.06,2.1250345]
[1759716292660,31.34,231.09,231.06,2.1250345]
[1759716292862,31.34,231.09,231.07,2.1250345]
[1759716295472,30.66,231.09,231.01,20.8]
[1759716295681,0.68,231.08,231.02,2.1250345]
[1759716295884,0.68,231.07,231.02,2.1250345]
[1759716296188,0.68,231.06,230.98,20.8]
[1759716296385,0.68,231.05,231.02,2.1250345]
[1759716296586,31.34,231.04,231.02,2.1250345]
[1759716296790,31.34,231.04,231.01,4.32878197]
[1759716296962,31.34,231.04,231.02,2.1250345]
[1759716297789,30.66,231.04,231.02,2.1250345]
[1759716297986,31.34,231.04,231.02,2.1250345]
[1759716299064,30.66,231.04,230.93,10.82551701]
[1759716299266,7.13347669,231.03,230.96,2.1250345]
[1759716299467,2.8050345,231.02,230.95,2.1250345]
[1759716299665,2.8050345,231.01,230.94,0.2]
[1759716299969,2.1250345,231.0,230.94,0.2]
[1759716300277,0.68,231.01,230.94,0.2]
[1759716300278,32.7850345,230.99,230.94,0.2]
[1759716300476,0.68,230.98,230.94,0.2]
[1759716300990,15.14954767,231.03,230.97,2.1250345]
[1759716300991,0.68,231.03,230.97,2.1250345]
[1759716301293,4.34,231.06,231.02,2.1250345]
[1759716301473,0.68,231.09,230.98,21.14]
[1759716301474,30.66,231.08,231.04,2.1250345]
[1759716301794,0.68,231.07,231.04,2.1250345]
[1759716302973,30.66,231.08,231.05,2.1250345]
[1759716303180,30.66,231.08,231.01,0.34]
[1759716303181,30.66,231.08,231.06,2.1250345]
[1759716303676,0.68,231.12,231.07,2.1250345]
[1759716303995,31.34,231.11,231.08,2.1250345]
[1759716304194,0.68,231.1,231.07,2.1250345]
[1759716304392,0.68,231.1,231.08,2.1250345]
[1759716304576,2.1250345,231.16,231.08,2.1250345]
[1759716304780,4.32582082,231.17,231.13,2.1250345]
[1759716304781,0.68,231.17,231.13,2.1250345]
[1759716304972,31.34,231.17,231.09,0.34]
[1759716305167,30.66,231.17,231.15,2.1250345]
[1759716305891,30.66,231.17,231.16,2.1250345]
[1759716306488,33.74,231.23,231.16,2.1250345]
[1759716306683,31.34,231.22,231.17,2.1250345]
[1759716306879,0.68,231.25,231.21,2.1250345]
[1759716307082,0.68,231.27,231.23,2.1250345]
[1759716307289,31.34,231.26,231.14,20.8]
[1759716307491,2.1250345,231.24,231.17,2.1250345]
[1759716307692,0.68,231.23,231.19,2.1250345]
[1759716307998,0.68,231.23,231.2,2.1250345]
[1759716308185,0.68,231.22,231.2,2.1250345]
[1759716308381,0.68,231.22,231.15,4.32602903]
[1759716308583,0.68,231.22,231.2,2.1250345]
[1759716308779,30.66,231.26,231.2,2.1250345]
[1759716309101,0.68,231.21,231.19,2.1250345]
[1759716309680,0.68,231.2,231.18,2.1250345]
[1759716310483,0.68,231.2,231.19,2.1250345]
[1759716311102,0.68,231.23,231.19,2.1250345]
[1759716311302,0.68,231.23,231.2,2.1250345]
[1759716311481,0.68,231.25,231.22,2.1250345]
[1759716311804,30.66,231.26,231.24,2.1250345]
[1759716311993,30.66,231.26,231.25,2.1250345]
[1759716312192,30.66,231.26,231.24,2.1250345]
[1759716312699,31.34,231.26,231.24,2.1250345]
[1759716313916,0.1,231.31,231.25,2.1250345]
[1759716314208,30.74,231.31,231.29,2.1250345]
[1759716314515,30.74,231.31,231.24,15.47576924]
[1759716314681,30.74,231.31,231.3,2.1250345]
[1759716314880,0.1,231.31,231.3,2.1250345]
[1759716315093,0.1,231.31,231.29,2.1250345]
[1759716315606,0.78,231.31,231.29,2.1250345]
[1759716317119,0.1,231.31,231.3,2.1250345]
[1759716317891,0.1,231.31,231.29,2.1250345]
[1759716319486,0.1,231.31,231.3,2.1250345]
[1759716321081,0.1,231.31,231.29,2.1250345]
[1759716321507,0.1,231.31,231.24,4.32434735]
[1759716321710,2.8450345,231.3,231.2,4.32508568]
[1759716321885,20.8,231.28,231.22,2.1250345]
[1759716322087,31.36,231.27,231.22,2.1250345]
[1759716322317,0.72,231.26,231.23,2.1250345]
[1759716322613,0.72,231.26,231.19,4.32541889]
[1759716322614,0.1,231.31,231.25,2.1250345]
[1759716322825,0.1,231.31,231.24,0.34]
[1759716322826,0.1,231.31,231.3,2.1250345]
[1759716323524,0.82,231.31,231.28,2.1250345]
[1759716323887,0.72,231.3,231.28,2.1250345]
[1759716324087,0.1,231.31,231.28,2.1250345]
[1759716324302,0.82,231.31,231.28,2.1250345]
[1759716325306,0.82,231.31,231.23,4.32469835]
[1759716325509,0.82,231.31,231.28,2.1250345]
[1759716325693,0.72,231.3,231.22,31.95197868]
[1759716325894,0.1,231.31,231.29,2.1250345]
[1759716326095,0.1,231.31,231.28,2.1250345]
[1759716326494,0.82,231.31,231.28,2.1250345]
[1759716326703,0.82,231.31,231.29,2.1250345]
[1759716327328,0.82,231.31,231.28,2.1250345]
[1759716327540,0.82,231.31,231.23,4.66469835]
[1759716327712,0.82,231.31,231.28,2.1250345]
[1759716327907,0.72,231.3,231.22,20.8]
[1759716328227,0.72,231.29,231.23,2.1250345]
[1759716328422,31.36,231.28,231.21,2.1250345]
[1759716328624,30.64,231.28,231.23,2.1250345]
[1759716328934,30.64,231.28,231.25,2.1250345]
[1759716329432,0.72,231.27,231.24,2.1250345]
[1759716329917,30.64,231.28,231.26,2.1250345]
[1759716330122,30.72,231.31,231.27,2.1250345]
[1759716330317,30.72,231.31,231.3,2.1250345]
[1759716330318,0.1,231.31,231.3,2.1250345]
[1759716331030,0.1,231.31,231.3,4.99799388]
[1759716331608,0.1,231.31,231.3,9.32138341]
[1759716332235,0.1,231.31,231.3,4.99799388]
[1759716333021,0.1,231.31,231.3,9.32138341]
[1759716333232,0.1,231.31,231.3,9.66138341]
[1759716333434,0.1,231.31,231.3,4.99799388]
[1759716334418,0.82,231.31,231.3,4.99799388]
[1759716334617,0.82,231.31,231.29,4.99799388]
[1759716334932,0.72,231.3,231.29,4.99799388]
[1759716335231,0.72,231.3,231.22,4.32470954]
[1759716335438,0.72,231.29,231.23,4.99799388]
[1759716335643,0.72,231.28,231.23,4.99799388]
[1759716335827,35.71799388,231.31,231.23,4.99799388]
[1759716336019,0.72,231.28,231.24,4.99799388]
[1759716336224,30.72,231.31,231.25,4.99799388]
[1759716336426,0.72,231.3,231.25,4.99799388]
[1759716336637,0.72,231.29,231.26,4.99799388]
[1759716336842,31.34,231.29,231.26,4.99799388]
[1759716339257,0.1,231.31,231.28,4.99799388]
[1759716339440,0.1,231.31,231.23,10.87647521]
[1759716339441,0.1,231.31,231.3,4.99799388]
[1759716339940,0.1,231.31,231.3,5.33799388]
[1759716340249,0.1,231.31,231.3,9.66138341]
[1759716340831,0.1,231.31,231.3,9.32138341]
[1759716341028,0.1,231.31,231.3,4.99799388]
[1759716342739,0.1,231.31,231.3,9.32138341]
[1759716342942,0.1,231.31,231.27,4.32395036]
[1759716343145,0.1,231.31,231.3,4.99799388]
[1759716344549,0.1,231.31,231.3,9.32138341]
[1759716345022,0.1,231.31,231.3,7.58500082]
[1759716345719,0.1,231.31,231.3,3.26161129]
[1759716349262,0.1,231.31,231.3,7.58500082]
[1759716353161,0.1,231.31,231.3,1.35671372]
[1759716354049,0.1,231.31,231.27,4.32386304]
[1759716354240,0.1,231.31,231.29,1.35671372]
[1759716354437,0.1,231.31,231.3,1.35671372]
[1759716355170,0.1,231.31,231.3,37.69657846]
[1759716355733,0.1,231.32,231.31,10.87647521]
[1759716355932,0.1,231.32,231.31,12.57318893]
[1759716357459,0.1,231.32,231.31,16.89639155]
[1759716361540,0.1,231.32,231.31,16.55639155]
[1759716362475,0.1,231.33,231.31,16.89639155]
[1759716362676,0.1,231.36,231.35,22.15671372]
[1759716362839,0.1,231.36,231.35,1.35671372]
[1759716363362,0.1,231.36,231.29,0.34]
[1759716363363,0.1,231.36,231.3,4.32334398]
[1759716363547,0.1,231.36,231.35,1.35671372]
[1759716363860,0.1,231.36,231.33,1.35671372]
[1759716364065,0.66,231.35,231.33,1.35671372]
[1759716364249,0.1,231.36,231.34,1.35671372]
[1759716364863,0.66,231.35,231.28,25.12364074]
[1759716365040,0.66,231.34,231.24,10.81122072]
[1759716365246,0.66,231.33,231.29,1.35671372]
[1759716365460,0.66,231.32,231.29,1.35671372]
[1759716365667,0.66,231.31,231.29,1.35671372]
[1759716365849,0.66,231.3,231.28,1.35671372]
[1759716366044,1.35671372,231.35,231.28,1.35671372]
[1759716366242,0.66,231.29,231.28,1.35671372]
[1759716366444,0.66,231.29,231.26,1.35671372]
[1759716366740,0.66,231.28,231.26,1.35671372]
[1759716367075,55.84228796,231.36,231.23,1.35671372]
[1759716367076,0.66,231.27,231.23,1.35671372]
[1759716367245,0.66,231.26,231.23,1.35671372]
[1759716367442,0.66,231.25,231.23,1.35671372]
[1759716367673,0.66,231.24,231.23,1.35671372]
[1759716368241,0.66,231.24,231.22,1.35671372]
[1759716368439,0.66,231.23,231.18,1.35671372]
[1759716368749,2.01671372,231.22,231.15,1.35671372]
[1759716368950,0.66,231.21,231.14,1.35671372]
[1759716369144,0.66,231.2,231.15,1.35671372]
[1759716369486,0.66,231.2,231.16,1.35671372]
[1759716369762,0.66,231.19,231.17,1.35671372]
[1759716369959,0.66,231.18,231.17,1.35671372]
[1759716370139,0.66,231.18,231.15,1.35671372]
[1759716370340,0.66,231.17,231.15,1.35671372]
[1759716370556,0.66,231.16,231.1,13.23087566]
[1759716370757,0.66,231.15,231.11,1.35671372]
[1759716370972,0.66,231.14,231.11,1.35671372]
[1759716371146,0.66,231.13,231.11,1.35671372]
[1759716371863,5.68238955,231.18,231.09,1.35671372]
[1759716371864,0.66,231.12,231.09,1.35671372]
[1759716372055,0.66,231.11,231.09,1.35671372]
[1759716372250,0.66,231.1,231.09,1.35671372]
[1759716372455,1.35671372,231.14,231.03,13.23618293]
[1759716372760,0.66,231.1,231.06,1.35671372]
[1759716372968,0.66,231.09,231.06,1.35671372]
[1759716373152,0.66,231.08,231.06,1.35671372]
[1759716373667,0.66,231.07,231.06,1.35671372]
[1759716373975,0.66,231.1,231.06,1.35671372]
[1759716374147,0.66,231.09,231.06,1.35671372]
[1759716374347,0.66,231.08,231.06,1.35671372]
[1759716374551,0.66,231.07,231.06,1.35671372]
[1759716375072,0.66,231.09,231.06,1.35671372]
[1759716375274,0.66,231.08,231.06,1.35671372]
[1759716375674,0.66,231.08,231.03,4.32827568]
[1759716375675,0.66,231.07,231.04,1.35671372]
[1759716375978,0.66,231.07,231.01,4.32874177]
[1759716375979,0.66,231.06,231.03,1.35671372]
[1759716376151,1.35671372,231.1,231.03,1.35671372]
[1759716376356,0.66,231.05,231.03,1.35671372]
[1759716377271,0.66,231.04,230.96,10.87647521]
[1759716377454,0.66,231.04,231.01,1.35671372]
[1759716377657,0.67,231.03,231.01,1.35671372]
[1759716378375,0.67,231.03,230.96,47.17061444]
[1759716378550,0.67,231.03,231.01,1.35671372]
[1759716379965,15.20289052,231.14,231.01,5.68540677]
[1759716380166,0.67,231.07,231.04,1.35671372]
[1759716380366,0.67,231.06,231.04,1.35671372]
[1759716380792,0.67,231.1,231.04,1.35671372]
[1759716380956,0.67,231.14,231.09,1.35671372]
[1759716381151,1.35671372,231.21,231.12,1.35671372]
[1759716381352,1.35671372,231.23,231.16,1.35671372]
[1759716381572,0.67,231.22,231.16,1.35671372]
[1759716381874,0.67,231.21,231.16,1.35671372]
[1759716382078,0.67,231.2,231.16,1.35671372]
[1759716382253,0.67,231.19,231.16,1.35671372]
[1759716382447,0.67,231.18,231.16,1.35671372]
[1759716382647,0.67,231.17,231.16,1.35671372]
[1759716382852,0.67,231.17,231.15,1.35671372]
[1759716383051,0.67,231.16,231.1,3.26715877]
[1759716383271,0.67,231.16,231.05,11.16001546]
[1759716383272,0.67,231.15,231.09,3.26715877]
[1759716383477,0.67,231.14,231.09,3.26715877]
[1759716383865,0.67,231.14,231.11,3.26715877]
[1759716384066,0.67,231.13,231.11,3.26715877]
[1759716384372,51.44,231.18,231.05,35.9480685]
[1759716384557,0.67,231.16,231.12,3.26715877]
[1759716384890,0.67,231.15,231.11,3.26715877]
[1759716385061,0.67,231.14,231.1,3.26715877]
[1759716385257,0.67,231.14,231.11,3.26715877]
[1759716385456,0.67,231.18,231.13,3.26715877]
[1759716385658,0.67,231.18,231.09,0.34]
[1759716385659,0.67,231.18,231.15,3.26715877]
[1759716385977,30.64,231.22,231.16,3.26715877]
[1759716386173,0.67,231.21,231.15,3.26715877]
[1759716386377,0.67,231.2,231.15,3.26715877]
[1759716386557,0.67,231.19,231.15,3.26715877]
[1759716386877,0.67,231.18,231.15,3.26715877]
[1759716387087,0.67,231.17,231.15,3.26715877]
[1759716387769,38.23211343,231.22,231.08,31.61876406]
[1759716387770,0.67,231.2,231.16,3.26715877]
[1759716387965,0.67,231.19,231.12,4.32658153]
[1759716388171,0.67,231.19,231.15,3.26715877]
[1759716388378,0.67,231.18,231.15,3.26715877]
[1759716388675,0.67,231.17,231.1,4.32696725]
[1759716388879,0.67,231.2,231.14,3.26715877]
[1759716389080,0.67,231.19,231.15,3.26715877]
[1759716389288,0.67,231.18,231.15,3.26715877]
[1759716390980,0.67,231.17,231.14,3.26715877]
[1759716391179,0.67,231.16,231.12,3.26715877]
[1759716391381,0.67,231.15,231.11,3.26715877]
[1759716391585,0.67,231.14,231.11,3.26715877]
[1759716391970,20.8,231.17,231.11,3.26715877]
[1759716392285,0.67,231.13,231.09,3.26715877]
[1759716392460,0.67,231.12,231.09,3.26715877]
[1759716395467,0.69,231.15,231.09,7.59443555]
[1759716395672,0.69,231.14,231.09,3.26715877]
[1759716395864,0.69,231.13,231.09,3.26715877]
[1759716397579,30.64,231.15,231.09,7.59444356]
[1759716397784,31.33,231.15,231.09,7.59444356]
[1759716400401,30.64,231.15,231.09,7.59444356]
[1759716400575,0.69,231.14,231.09,3.26715877]
[1759716400779,0.69,231.18,231.13,3.26715877]
[1759716400987,0.69,231.17,231.13,3.26715877]
[1759716401190,0.69,231.17,231.15,3.26715877]
[1759716401891,30.64,231.2,231.15,3.26715877]
[1759716402092,0.69,231.19,231.15,3.26715877]
[1759716402484,0.69,231.18,231.15,3.26715877]
[1759716403176,0.69,231.18,231.16,1.3586409]
[1759716403596,20.8,231.21,231.16,1.3586409]
[1759716403914,20.8,231.15,231.05,4.32806751]
[1759716404074,31.33,231.14,231.09,1.3586409]
[1759716404475,0.69,231.13,231.09,1.3586409]
[1759716405813,0.69,231.2,231.11,1.3586409]
[1759716406095,31.33,231.2,231.16,1.3586409]
[1759716406317,0.69,231.19,231.16,1.3586409]
[1759716407189,0.69,231.19,231.17,2.1226398]
[1759716408483,30.64,231.2,231.17,2.1226398]
[1759716408696,0.71,231.18,231.14,2.1226398]
[1759716409012,0.71,231.17,231.14,2.1226398]
[1759716409205,0.71,231.19,231.14,2.1226398]
[1759716409509,30.64,231.2,231.14,6.44902041]
[1759716409710,0.71,231.19,231.14,6.44902041]
[1759716410207,0.71,231.18,231.14,2.1226398]
[1759716410383,0.71,231.17,231.14,2.1226398]
[1759716410790,0.71,231.19,231.14,2.1226398]
[1759716410988,0.71,231.18,231.14,2.1226398]
[1759716412202,0.71,231.17,231.14,2.1226398]
[1759716412785,0.71,231.16,231.1,4.32704703]
[1759716412993,0.71,231.16,231.11,2.1226398]
[1759716413304,0.71,231.15,231.11,2.1226398]
[1759716413705,31.33,231.14,231.03,11.21647521]